Cogmind - Beta 14 @@@ ROGUE MODE // 2024.08.15 @ 23:29:01 Player: Gaffe Result: Destroyed by LV-01A with Experimental Neutron Missile Launcher Performance ------------- Evolutions (6) 3000 Regions Visited (14) 2800 Robots Destroyed (52) 260 Value Destroyed (1461) 1461 Prototype IDs (41) 820 Alien Tech Used (2) 400 Bonus (1615) 1615 TOTAL SCORE: 10356 Bonus ------- Registered with UFD 300 Met Zhirov 300 Met Warlord at Base 500 MAIN.C Attacked Warlord 500 Warlord Defense Kills 140 Friendly Fire -125 Cogmind --------- Core Integrity 0/1150 Matter 300/300 Energy 600/600 System Corruption 7% Temperature Cool (33) Movement Core (800) Ox15 Location -4/Warlord Parts ------- > --- POWER (2) -------- (None) > --- PROPULSION (5) --- (None) > --- UTILITY (9) ------ High-capacity Storage Unit Advanced Energy Well > --- WEAPON (3) ------- Vortex Lance > --- INVENTORY (20) --- Flexi-carbon Leg Power Amplifier Coolant Injector Compact Battery (200) Improved Transmission Jammer Makeshift Light Armor Plating Wardrone Bay Autogun Autogun Improved Plasma Cutter CPS Tube (2) Vortex Trap Peak State ------------ > --- POWER ------------ Micro Fission Core Micro Fission Core > --- PROPULSION ------- Myomer Leg Advanced Myomer Leg Advanced Myomer Leg Advanced Myomer Leg > --- UTILITY ---------- Scrap Suit High-capacity Storage Unit Advanced Energy Well Improved Matter Compressor Makeshift Trap Scanner Experimental Core Shielding Advanced Hacking Suite > --- WEAPON ----------- Heavy Battle Rifle Heavy Battle Rifle Vortex Lance > --- INVENTORY -------- Wheel Wheel Power Amplifier Coolant Injector Compact Battery Improved Transmission Jammer Makeshift Light Armor Plating Wardrone Bay Autogun Autogun Improved Plasma Cutter CPS Tube Vortex Trap [Rating: 119] Favorites ----------- Power Light Ion Engine Engine Light Ion Engine Power Core Micro Fission Core Reactor Light Antimatter Reactor Propulsion Advanced Myomer Leg Treads Light Treads Leg Advanced Myomer Leg Wheel Armored Huge Wheel Flight Unit Field Propulsion Drive Utility High-capacity Storage Unit Device Scrap Suit Storage High-capacity Storage Unit Processor Experimental Signal Interpreter Hackware Advanced Hacking Suite Protection Experimental Core Shielding Weapon Heavy Battle Rifle Energy Gun Overtuned Beamcaster Energy Cannon Beam Cannon Ballistic Gun Heavy Battle Rifle Ballistic Cannon Light Cannon Special Weapon Enhanced Flamer Impact Weapon Flail Piercing Weapon Vortex Lance Build | -11 -10 -10 -10 -7 -7 -5 -5 -5 -5 -4 -4 -4 -4 -4 ------- Run | Yrd Mat Min Sub Rec Scr Fac Upp Upp Zhi Pro Fac Upp Upp War Slots Evolved 12 | . . . . . . 10 . . . . 2 . . . Power 1 | . . . . . . 1 . . . . . . . . Propulsion 3 | . . . . . . 3 . . . . . . . . Utility 7 | . . . . . . 5 . . . . 2 . . . Weapon 1 | . . . . . . 1 . . . . . . . . Parts Attached 95 | 6 7 1 3 4 6 20 11 7 7 2 7 6 3 5 Power 11 | 1 . 1 . 1 . 2 1 . . 2 1 1 1 . Engine 6 | 1 . 1 . 1 . 1 1 . . 1 . . . . Core 4 | . . . . . . 1 . . . 1 . 1 1 . Reactor 1 | . . . . . . . . . . . 1 . . . Propulsion 29 | 2 2 . 1 1 4 9 1 2 3 . 1 . . 3 Treads 5 | . 2 . . . . 3 . . . . . . . . Leg 7 | 2 . . . . . . . . 3 . 1 . . 1 Wheel 12 | . . . 1 1 4 1 1 2 . . . . . 2 Hover . | . . . . . . . . . . . . . . . Flight 5 | . . . . . . 5 . . . . . . . . Utility 37 | 1 3 . 1 2 2 6 5 3 4 . 5 3 1 1 Device 18 | . 1 . 1 1 . 4 2 2 . . 3 3 . 1 Storage 7 | 1 1 . . . 1 . . 1 3 . . . . . Processor 4 | . 1 . . 1 1 . . . . . 1 . . . Hackware 2 | . . . . . . 1 . . . . . . 1 . Protection 6 | . . . . . . 1 3 . 1 . 1 . . . Artifact . | . . . . . . . . . . . . . . . Weapon 18 | 2 2 . 1 . . 3 4 2 . . . 2 1 1 Energy Gun 1 | . . . . . . 1 . . . . . . . . Energy Cannon 3 | . 1 . 1 . . . . 1 . . . . . . Ballistic Gun 9 | 2 . . . . . 2 2 1 . . . 1 1 . Ballistic Cannon 2 | . 1 . . . . . . . . . . 1 . . Launcher . | . . . . . . . . . . . . . . . Special Weapon 2 | . . . . . . . 2 . . . . . . . Impact Weapon . | . . . . . . . . . . . . . . . Slashing Weapon . | . . . . . . . . . . . . . . . Piercing Weapon 1 | . . . . . . . . . . . . . . 1 Special Melee Weapon . | . . . . . . . . . . . . . . . Unidentified Prototypes 10 | . . . . 1 . . 1 . 6 . . . . 2 Parts Lost 42 | . . 1 2 . . 3 10 3 . 4 . 2 1 16 Power 8 | . . 1 . . . 1 2 . . . . 1 1 2 Propulsion 12 | . . . 2 . . . 3 1 . . . . . 6 Utility 14 | . . . . . . 2 3 1 . 1 . 1 . 6 Weapon 8 | . . . . . . . 2 1 . 3 . . . 2 Highest Loss Streak 10 | . . 1 1 . . 3 5 2 . 2 . 2 1 10 To Critical Strikes . | . . . . . . . . . . . . . . . Average Slot Usage (%) 72 | . 99 99 87 86 57 67 49 54 59 79 78 75 70 70 Engine 7 | . 14 13 14 14 14 8 . . . 4 5 5 1 . Core 1 | . . . . . . . 1 . . 4 . 1 8 9 Treads 5 | . 26 28 15 . . 3 4 . . . . . . . Leg 5 | . 1 . . . . . . . 3 17 14 15 15 13 Wheel 4 | . . . 1 16 14 3 3 5 7 . . . . . Device 7 | . 6 . 13 . . 11 7 12 15 10 9 17 12 9 Storage 13 | . 19 14 14 14 14 5 5 6 7 17 15 15 15 14 Processor 6 | . 1 14 . 12 14 5 5 5 4 . 3 1 . . Protection 3 | . . . . . . 3 7 9 . 5 10 5 5 4 Energy Cannon 4 | . 12 14 14 14 . 2 . 2 5 4 . . . . Ballistic Gun 3 | . 3 . . . . 4 2 3 5 10 10 5 8 9 Ballistic Cannon 3 | . 11 14 14 14 . . . . . . 2 2 . . Peak Build Rating 119 | 6 8 10 12 17 25 81 74 49 82 85 97 101 93 119 Average Rating 47 | 4 7 9 11 10 19 58 48 46 53 83 90 94 90 94 On Entrance 44 | . 6 8 10 12 10 25 66 49 46 81 73 97 87 93 Naked Turns . | . . . . . . . . . . . . . . . Heaviest Build 97 | 14 36 31 32 32 43 79 71 73 70 80 92 97 78 79 Greatest Support 115 | 20 40 40 40 36 28 70 70 28 90 90 90 90 90 115 Greatest Overweight (x) 26 | 1 . . 10 1 14 26 14 22 20 . 1 1 . 23 Average Overweight (x) . | . . . . . . 1 1 2 2 . . . . . Largest Inventory Capacity 20 | 8 15 15 15 15 20 20 20 20 20 20 20 20 20 20 Average Capacity 18 | 7 14 15 15 15 18 20 20 20 20 20 20 20 20 20 Most Carried 20 | 4 10 13 15 15 20 17 18 15 15 17 16 18 17 20 Average Carried 14 | 2 7 11 14 13 17 12 15 13 11 15 14 17 15 16 Final Capacity 20 | 8 15 15 15 15 20 20 20 20 20 20 20 20 20 20 Final Carried 19 | 4 9 13 14 14 19 15 15 11 15 17 14 17 14 19 Class Distribution -------------------- 63% | Mutant 13% | Derelict-Mutant 10% | Scavenger-Tank 4% | Tank 3% | Scavenger-Mutant Dominant Class ---------------- Mutant | -10/Materials Mutant | -10/Mines Mutant | -10/Subcaves Mutant | -7/Recycling Mutant | -7/Scraptown Tank | -5/Factory Derelict-Mutant | -5/Upper Caves Derelict-Mutant | -5/Upper Caves Gunner | -5/Zhirov Scavenger-Tank | -4/Proximity Caves Scavenger-Tank | -4/Factory Derelict-Mutant | -4/Upper Caves Mutant | -4/Upper Caves Mutant | -4/Warlord Resources | -11 -10 -10 -10 -7 -7 -5 -5 -5 -5 -4 -4 -4 -4 -4 ----------- Run | Yrd Mat Min Sub Rec Scr Fac Upp Upp Zhi Pro Fac Upp Upp War Matter Collected 2100 | 206 180 87 43 46 46 144 292 135 . 525 5 246 24 121 Remotely . | . . . . . . . . . . . . . . . Salvage Created 1310 | . 349 189 . 127 . 144 78 58 . 147 5 89 90 34 Parts 92 | . 26 27 . 8 . 4 . 2 . 9 . 9 5 2 Haulers Intercepted . | . . . . . . . . . . . . . . . Recyclers Shooed . | . . . . . . . . . . . . . . . Parts Field Recycled . | . . . . . . . . . . . . . . . Retrieved Matter . | . . . . . . . . . . . . . . . Parts Self-Destructed 49 | . . . 7 . . . 2 2 . 24 . 9 5 . Prevented 4 | . . . . . . . . . . 1 . 3 . . Kills | -11 -10 -10 -10 -7 -7 -5 -5 -5 -5 -4 -4 -4 -4 -4 ------- Run | Yrd Mat Min Sub Rec Scr Fac Upp Upp Zhi Pro Fac Upp Upp War Combat Hostiles Destroyed 45 | . 11 12 . 1 . 2 2 5 . 5 . 2 4 1 Melee 1 | . . . . . . . . . . . . . . 1 Guns 8 | . . . . . . 1 . 1 . 2 . . 4 . Cannons 32 | . 11 12 . 1 . . . 3 . 3 . 2 . . Classes Destroyed 10 | . 4 2 . 2 . 1 . . . . 1 . . . Worker 1 | . . 1 . . . . . . . . . . . . Tunneler 1 | . . 1 . . . . . . . . . . . . Recycler 1 | . . . . 1 . . . . . . . . . . Operator 1 | . 1 . . . . . . . . . . . . . Drone 1 | . . . . . . . . . . . 1 . . . Watcher 3 | . 2 . . . . 1 . . . . . . . . Swarmer 29 | . 3 12 . . . . . 5 . 5 . . 4 . Grunt 8 | . 8 . . . . . . . . . . . . . Sentry 2 | . . . . 1 . . 1 . . . . . . . Programmer 6 | . . . . . . 2 1 . . . . 2 . 1 Best Kill Streak 5 | . 5 3 . 2 . 1 1 2 . 3 . 2 4 1 Combat Bots Only 4 | . 3 3 . 1 . 1 1 2 . 3 . 2 4 1 Max Kills in Single Turn 2 | . 1 2 . 1 . 1 1 1 . 1 1 1 1 1 Gunslinging . | . . . . . . . . . . . . . . . Exploded . | . . . . . . . . . . . . . . . Melee 1 | . . . . . . . . . . . . . . 1 Uniques/NPCs Destroyed . | . . . . . . . . . . . . . . . Combat | -11 -10 -10 -10 -7 -7 -5 -5 -5 -5 -4 -4 -4 -4 -4 -------- Run | Yrd Mat Min Sub Rec Scr Fac Upp Upp Zhi Pro Fac Upp Upp War Hostile Shots Fired 747 | . 53 42 29 18 . 81 161 67 . 69 . 50 36 141 Missed 226 | . 14 15 13 8 . 19 49 12 . 24 . 22 12 38 Damage Taken 9308 | . 392 195 137 78 . 1110 2158 647 . 701 . 589 345 2956 Core 2208 | . 97 14 24 16 . 145 499 99 . 84 . 66 19 1145 Absorbed by Shields . | . . . . . . . . . . . . . . . Redirected to Shielding 181 | . . . . . . . . . . 53 . 40 11 77 Ignored by Resistances 335 | . . . . . . 137 20 178 . . . . . . Regen/Repaired (Parts) 558 | . . . . . 344 . . . . 10 69 10 . 125 Core Remaining (%) 51 | 100 . . . . 39 . . . . 15 . . . . Volleys Fired 169 | . 34 23 2 4 . 27 19 15 . 13 10 7 11 4 Largest 3 | . 2 2 2 2 . 3 2 2 . 3 2 2 2 1 Hottest 209 | . 95 95 95 95 . 209 160 161 . 127 46 98 66 33 Shots Fired 298 | . 68 46 4 8 . 52 26 22 1 21 20 11 16 3 Gun 120 | . . . . . . 48 14 4 1 8 20 6 16 3 Cannon 151 | . 68 46 4 8 . 4 . 3 . 13 . 5 . . Launcher . | . . . . . . . . . . . . . . . Special 27 | . . . . . . . 12 15 . . . . . . Kinetic 149 | . 34 23 2 4 . 21 2 4 1 8 20 11 16 3 Thermal 129 | . 34 23 2 4 . 27 24 15 . . . . . . Explosive . | . . . . . . . . . . . . . . . Electromagnetic 20 | . . . . . . 4 . 3 . 13 . . . . Robot Hit Streak 12 | . 9 4 3 4 . 5 8 10 11 12 2 1 3 . Robot Miss Streak 8 | . 5 4 2 3 . 4 8 1 . 4 6 3 3 3 Penetration Max . | . . . . . . . . . . . . . . . Secondary Targets 1 | . . . . . . . . . . . . . 1 . Max Gunslinging Chain 1 | . . . . . . . . . . . . . 1 . Shots Hit Robots 151 | . 40 21 2 5 . 29 12 17 1 10 2 3 7 2 Core Hits 65 | . 16 13 . 4 . 6 3 6 . 7 2 3 4 1 Critical Kills . | . . . . . . . . . . . . . . . Critical Parts Destroyed . | . . . . . . . . . . . . . . . Critical Strikes 7 | . . . . 1 . 2 2 2 . . . . . . Burn 6 | . . . . . . 2 2 2 . . . . . . Blast 1 | . . . . 1 . . . . . . . . . . Melee Attacks 3 | . . . . . . . . . . . . . . 3 Impact . | . . . . . . . . . . . . . . . Slashing . | . . . . . . . . . . . . . . . Piercing . | . . . . . . . . . . . . . . . Entropic 3 | . . . . . . . . . . . . . . 3 Sneak Attacks . | . . . . . . . . . . . . . . . Combat Hostiles . | . . . . . . . . . . . . . . . Follow-up Attacks . | . . . . . . . . . . . . . . . Damage Inflicted 3125 | . 715 424 33 96 . 769 192 218 . 121 58 128 185 186 Guns 1192 | . . . . . . 766 87 46 . 29 58 21 185 . Cannons 1454 | . 712 381 33 96 . 3 . 30 . 92 . 107 . . Explosions 43 | . . 43 . . . . . . . . . . . . Melee 186 | . . . . . . . . . . . . . . 186 Ramming 3 | . 3 . . . . . . . . . . . . . Kinetic 1266 | . 326 139 16 45 . 294 . 46 . 29 58 128 185 . Thermal 1545 | . 386 285 17 51 . 472 192 142 . . . . . . Explosive . | . . . . . . . . . . . . . . . Electromagnetic 125 | . . . . . . 3 . 30 . 92 . . . . Impact . | . . . . . . . . . . . . . . . Slashing . | . . . . . . . . . . . . . . . Piercing . | . . . . . . . . . . . . . . . Entropic 186 | . . . . . . . . . . . . . . 186 Highest Corruption 12 | . . . . . . 7 12 12 12 12 . 4 4 7 Average Corruption 9 | . . . . . . 5 10 12 12 12 . 3 4 5 Corruption Purged . | . . . . . . . . . . . . . . . Corruption Blocked . | . . . . . . . . . . . . . . . Effects 141 | . . . . . . 4 27 34 16 37 . 8 9 6 Message Errors 32 | . . . . . . 1 6 8 4 6 . 2 2 3 Matter Fused 36 | . . . . . . 1 11 7 2 10 . 1 3 1 Heat Flow Errors 19 | . . . . . . 1 1 6 3 7 . . 1 . Energy Discharges 15 | . . . . . . . 2 4 3 6 . . . . Parts Rejected 2 | . . . . . . . . 1 . . . 1 . . Parts Fused 1 | . . . . . . . . . . 1 . . . . Data Loss (minor) 12 | . . . . . . . 3 3 2 . . 2 2 . Data Loss (major) 7 | . . . . . . . 1 2 . 3 . . . 1 Misfires 7 | . . . . . . . 3 1 1 1 . 1 . . Alerts 4 | . . . . . . 1 . . 1 2 . . . . Weapon Failures 6 | . . . . . . . . 2 . 1 . 1 1 1 Overload Shots . | . . . . . . . . . . . . . . . Overflow Damage 42 | . 7 15 . . . . . . . . . . . 20 Projectiles 22 | . 7 15 . . . . . . . . . . . . Explosions . | . . . . . . . . . . . . . . . Melee 20 | . . . . . . . . . . . . . . 20 Knockbacks 4 | . 3 1 . . . . . . . . . . . . Impact . | . . . . . . . . . . . . . . . Kinetic 4 | . 3 1 . . . . . . . . . . . . Secondary . | . . . . . . . . . . . . . . . Self-Inflicted Damage . | . . . . . . . . . . . . . . . Shots . | . . . . . . . . . . . . . . . Rammed 1 | . 1 . . . . . . . . . . . . . Targets Rammed 1 | . 1 . . . . . . . . . . . . . Kicked . | . . . . . . . . . . . . . . . Crushed . | . . . . . . . . . . . . . . . Highest Temperature 674 | . 351 153 . 123 . 674 415 190 176 312 . 12 253 7 Average Temperature 93 | . 73 54 . 70 . 153 137 62 75 91 . 7 129 7 Received Heat Transfer 914 | . 159 . 63 24 . . 387 45 . 9 . 18 . 209 Effects 7 | . . . . . . 5 1 . . 1 . . . . Shutdowns 3 | . . . . . . 2 1 . . . . . . . Energy Bleed 3 | . . . . . . 2 . . . 1 . . . . Interference 1 | . . . . . . 1 . . . . . . . . Siege Activations . | . . . . . . . . . . . . . . . Robots Corrupted . | . . . . . . . . . . . . . . . Combat Hostiles . | . . . . . . . . . . . . . . . Parts Fried . | . . . . . . . . . . . . . . . Impact Corruptions . | . . . . . . . . . . . . . . . Robots Melted 4 | . . . . . . 1 2 1 . . . . . . Combat Hostiles 4 | . . . . . . 1 2 1 . . . . . . Parts Melted 8 | . . 1 . . . 3 2 2 . . . . . . Heat Transferred 4980 | . 814 568 37 111 . 900 1190 1360 . . . . . . Parts Sabotaged . | . . . . . . . . . . . . . . . Parts Stolen . | . . . . . . . . . . . . . . . Parts Stripped . | . . . . . . . . . . . . . . . Power Chain Reactions . | . . . . . . . . . . . . . . . Alert | -11 -10 -10 -10 -7 -7 -5 -5 -5 -5 -4 -4 -4 -4 -4 ------- Run | Yrd Mat Min Sub Rec Scr Fac Upp Upp Zhi Pro Fac Upp Upp War Peak Influence 261 | . 219 261 . 52 . 72 . . . . 24 . . . Initial 85 | . . 85 . 52 . . . . . . 9 . . . Average 59 | . 69 107 . 39 . 29 . . . . 6 . . . Maximum Alert Level 1 | . 1 1 . . . . . . . . . . . . Low Security (%) 93 | 100 93 83 . 100 . 100 . . . . 100 . . . Level 1 6 | . 6 16 . . . . . . . . . . . . Level 2 . | . . . . . . . . . . . . . . . Level 3 . | . . . . . . . . . . . . . . . Level 4 . | . . . . . . . . . . . . . . . Level 5 . | . . . . . . . . . . . . . . . High Security . | . . . . . . . . . . . . . . . Max Security . | . . . . . . . . . . . . . . . Squads Dispatched 7 | . 2 . . . . 4 . . . . 1 . . . Investigation 1 | . 1 . . . . . . . . . . . . . Extermination 2 | . . . . . . 1 . . . . 1 . . . Reinforcement 4 | . 1 . . . . 3 . . . . . . . . Assault . | . . . . . . . . . . . . . . . Garrison . | . . . . . . . . . . . . . . . Intercept . | . . . . . . . . . . . . . . . Searches Triggered . | . . . . . . . . . . . . . . . Construction Impeded . | . . . . . . . . . . . . . . . Haulers Reinforced . | . . . . . . . . . . . . . . . Active Scanning Responses . | . . . . . . . . . . . . . . . Cargo Convoy Interrupts . | . . . . . . . . . . . . . . . Stealth | -11 -10 -10 -10 -7 -7 -5 -5 -5 -5 -4 -4 -4 -4 -4 --------- Run | Yrd Mat Min Sub Rec Scr Fac Upp Upp Zhi Pro Fac Upp Upp War Distress Signals 3 | . 2 . . . . . . . . . . . . 1 Communications Jammed 5 | . . . . . . 5 . . . . . . . . Distress Signals 5 | . . . . . . 5 . . . . . . . . Times Spotted 118 | . 19 16 8 1 . 7 4 9 . 11 3 4 5 31 Peak Tracking Total 18 | . 4 3 4 1 . 4 4 5 . 5 2 2 4 18 Tactical Retreats 13 | . . 3 2 . . . 1 1 . 4 . 1 1 . Traps | -11 -10 -10 -10 -7 -7 -5 -5 -5 -5 -4 -4 -4 -4 -4 ------- Run | Yrd Mat Min Sub Rec Scr Fac Upp Upp Zhi Pro Fac Upp Upp War Traps Triggered . | . . . . . . . . . . . . . . . Indirectly . | . . . . . . . . . . . . . . . Trap Hack Attempts . | . . . . . . . . . . . . . . . Triggered . | . . . . . . . . . . . . . . . Disarmed . | . . . . . . . . . . . . . . . Reprogrammed . | . . . . . . . . . . . . . . . Reused . | . . . . . . . . . . . . . . . Traps Extracted . | . . . . . . . . . . . . . . . Installed . | . . . . . . . . . . . . . . . Triggered 20 | . . . . . . . . . . . . . . 20 Most Traps Carried 1 | . . . . . 1 1 1 1 1 1 1 1 1 1 Machines | -11 -10 -10 -10 -7 -7 -5 -5 -5 -5 -4 -4 -4 -4 -4 ---------- Run | Yrd Mat Min Sub Rec Scr Fac Upp Upp Zhi Pro Fac Upp Upp War Machines Disabled 2 | . . 1 . . . . . . . . . 1 . . Max in Single Turn 1 | . . 1 . . . . . . . . . 1 . . Machines Repaired . | . . . . . . . . . . . . . . . Machines Dismantled . | . . . . . . . . . . . . . . . Machines Sabotaged . | . . . . . . . . . . . . . . . Overloaded Fab Kills . | . . . . . . . . . . . . . . . Hacking | -11 -10 -10 -10 -7 -7 -5 -5 -5 -5 -4 -4 -4 -4 -4 --------- Run | Yrd Mat Min Sub Rec Scr Fac Upp Upp Zhi Pro Fac Upp Upp War Machines Accessed 30 | . 5 1 . 5 6 2 1 . 6 . 1 1 . 2 Terminals 8 | . 4 . . 3 . 1 . . . . . . . . Fabricators . | . . . . . . . . . . . . . . . Repair Stations 1 | . . . . . . . . . . . 1 . . . Recycling Units 1 | . 1 . . . . . . . . . . . . . Scanalyzers 1 | . . . . . . 1 . . . . . . . . Garrison Access . | . . . . . . . . . . . . . . . Total Hacks 107 | . 18 1 . 30 20 5 1 . 20 . 5 1 . 6 Successful 93 | . 10 1 . 27 20 4 1 . 20 . 3 1 . 6 Failed 14 | . 8 . . 3 . 1 . . . . 2 . . . Catastrophic 2 | . . . . 1 . . . . . . 1 . . . Database Lockouts . | . . . . . . . . . . . . . . . Manual 1 | . . . . . . . . . . . . . . 1 Terminals 20 | . 12 . . 5 . 3 . . . . . . . . Fabricators . | . . . . . . . . . . . . . . . Repair Stations 5 | . . . . . . . . . . . 5 . . . Recycling Units 6 | . 6 . . . . . . . . . . . . . Scanalyzers 2 | . . . . . . 2 . . . . . . . . Garrison Access . | . . . . . . . . . . . . . . . Terminal Hacks 83 | . 5 1 . 27 20 2 1 . 20 . . 1 . 6 Record 52 | . . . . 25 19 . . . 8 . . . . . Part Schematic 4 | . . . . . . . . . 4 . . . . . Robot Analysis 5 | . 1 . . . . . . . 4 . . . . . Prototype ID Bank 10 | . . . . . . 1 . . 4 . . . . 5 Open Door 4 | . . 1 . . . . 1 . . . . 1 . 1 Unreport Threat 1 | . . . . 1 . . . . . . . . . . Locate Traps 4 | . 3 . . . . 1 . . . . . . . . Recall Investigation 1 | . 1 . . . . . . . . . . . . . Derelict Proto ID Bank 1 | . . . . . 1 . . . . . . . . . Release Object 1 | . . . . 1 . . . . . . . . . . Fabricator Hacks . | . . . . . . . . . . . . . . . Repair Station Hacks 3 | . . . . . . . . . . . 3 . . . Scan Component 2 | . . . . . . . . . . . 2 . . . Repair 1 | . . . . . . . . . . . 1 . . . Recycling Unit Hacks 5 | . 5 . . . . . . . . . . . . . Recycle Component 2 | . 2 . . . . . . . . . . . . . Process 2 | . 2 . . . . . . . . . . . . . Retrieve Matter 1 | . 1 . . . . . . . . . . . . . Scanalyzer 2 | . . . . . . 2 . . . . . . . . Insert Component 2 | . . . . . . 2 . . . . . . . . Garrison Access Hacks . | . . . . . . . . . . . . . . . Unauthorized Hacks . | . . . . . . . . . . . . . . . Terminals . | . . . . . . . . . . . . . . . Fabricators . | . . . . . . . . . . . . . . . Repair Stations . | . . . . . . . . . . . . . . . Recycling Units . | . . . . . . . . . . . . . . . Scanalyzers . | . . . . . . . . . . . . . . . Garrison Access . | . . . . . . . . . . . . . . . Data Cores Recovered . | . . . . . . . . . . . . . . . Used . | . . . . . . . . . . . . . . . Hacking Detections 7 | . 2 . . 2 . 2 . . . . 1 . . . Full Trace Events 2 | . 1 . . 1 . . . . . . . . . . Feedback Events . | . . . . . . . . . . . . . . . Feedback Blocked . | . . . . . . . . . . . . . . . Robot Schematics Acquired . | . . . . . . . . . . . . . . . Robots Built . | . . . . . . . . . . . . . . . Authchips . | . . . . . . . . . . . . . . . Time . | . . . . . . . . . . . . . . . Total Robot Build Rating . | . . . . . . . . . . . . . . . Part Schematics Acquired 4 | . . . . . . . . . 4 . . . . . Parts Built . | . . . . . . . . . . . . . . . Authchips . | . . . . . . . . . . . . . . . Time . | . . . . . . . . . . . . . . . Total Part Build Rating . | . . . . . . . . . . . . . . . Parts Repaired 1 | . . . . . . . . . . . 1 . . . Time 99 | . . . . . . . . . . . 99 . . . Parts Recycled 2 | . 2 . . . . . . . . . . . . . Recycled Matter 103 | . 103 . . . . . . . . . . . . . Retrieved Matter 103 | . 103 . . . . . . . . . . . . . Retrieved Components . | . . . . . . . . . . . . . . . Parts Scanalyzed . | . . . . . . . . . . . . . . . Part Schematics Acquired . | . . . . . . . . . . . . . . . Parts Damaged . | . . . . . . . . . . . . . . . Bothacking | -11 -10 -10 -10 -7 -7 -5 -5 -5 -5 -4 -4 -4 -4 -4 ------------ Run | Yrd Mat Min Sub Rec Scr Fac Upp Upp Zhi Pro Fac Upp Upp War Used RIF Installer . | . . . . . . . . . . . . . . . Robots Hacked . | . . . . . . . . . . . . . . . Non-combat . | . . . . . . . . . . . . . . . Combat . | . . . . . . . . . . . . . . . Robot Hacks Applied . | . . . . . . . . . . . . . . . Relay Couplers Released . | . . . . . . . . . . . . . . . Fabnet Peak Effective % . | . . . . . . . . . . . . . . . Robots Rewired . | . . . . . . . . . . . . . . . Allies Hacked . | . . . . . . . . . . . . . . . Hacks Repelled . | . . . . . . . . . . . . . . . Allies | -11 -10 -10 -10 -7 -7 -5 -5 -5 -5 -4 -4 -4 -4 -4 -------- Run | Yrd Mat Min Sub Rec Scr Fac Upp Upp Zhi Pro Fac Upp Upp War Total Allies . | . . . . . . . . . . . . . . . Largest Group . | . . . . . . . . . . . . . . . Highest-Rated Group . | . . . . . . . . . . . . . . . Highest-Rated Ally . | . . . . . . . . . . . . . . . Total Orders . | . . . . . . . . . . . . . . . Ally Attacks . | . . . . . . . . . . . . . . . Total Damage . | . . . . . . . . . . . . . . . Kills . | . . . . . . . . . . . . . . . Allies Corrupted . | . . . . . . . . . . . . . . . Allies Melted 1 | . . . . . . . . . . . . . . 1 Intel | -11 -10 -10 -10 -7 -7 -5 -5 -5 -5 -4 -4 -4 -4 -4 ------- Run | Yrd Mat Min Sub Rec Scr Fac Upp Upp Zhi Pro Fac Upp Upp War Robot Analysis Total 5 | . 1 . . . . . . . 4 . . . . . Derelict Logs Recovered 6 | . . 3 . . . . . 1 . 1 . . 1 . Drone Launches 22 | . . . . . . . 6 . . . 3 3 . 10 Drone Recoveries 8 | . . . . . . . . 3 . . . 3 . 2 Exploration | -11 -10 -10 -10 -7 -7 -5 -5 -5 -5 -4 -4 -4 -4 -4 ------------- Run | Yrd Mat Min Sub Rec Scr Fac Upp Upp Zhi Pro Fac Upp Upp War Turns Passed 12411 | 76 619 1324 475 609 2591 562 829 819 378 942 680 1046 432 1029 Spaces Moved 8163 | 54 287 665 205 496 2090 260 486 489 275 734 317 742 334 729 Core 37 | 5 . . 1 . 11 4 1 10 2 . . . . 3 Treads 1308 | . 264 665 186 . . 55 138 . . . . . . . Legs 2958 | 49 23 . . . . . . . 61 734 317 742 334 698 Wheels 3854 | . . . 18 496 2079 195 347 479 212 . . . . 28 Hover . | . . . . . . . . . . . . . . . Flight 6 | . . . . . . 6 . . . . . . . . Fastest Speed 50 | 50 120 160 120 105 90 130 115 125 120 120 120 120 120 120 Average Speed 133 | 114 156 160 211 116 115 158 142 148 131 120 159 133 120 125 Slowest Speed 1350 | 120 160 160 550 120 750 1350 750 1150 1050 120 190 190 120 1200 Overloaded Moves . | . . . . . . . . . . . . . . . Propulsion Burnouts . | . . . . . . . . . . . . . . . Robots Hopped . | . . . . . . . . . . . . . . . Cave-ins Triggered . | . . . . . . . . . . . . . . . Teleports 1 | . . . . . . . . . 1 . . . . . Exploration Rate (%) 56 | 5 62 98 17 84 94 9 59 69 62 82 5 74 59 73 Regions Visited 14 Branch Regions 11 Pre-discovered Areas 5 | . . 2 . . . . . . 3 . . . . . Known Exits Taken 8 | . 1 1 . 1 1 1 1 1 1 . . . . . Unknown Exits Taken 6 | 1 . . 1 . . . . . . 1 1 1 1 . Scrap Searched 15 | . . 1 . . 7 . 1 2 . 2 . 2 . . Spaces Dug . | . . . . . . . . . . . . . . . Terrain Destroyed 37 | . . 16 . . . 9 8 . . . . 2 1 1 Melee . | . . . . . . . . . . . . . . . Projectile 21 | . . . . . . 9 8 . . . . 2 1 1 AOE 16 | . . 16 . . . . . . . . . . . . Terrain Rammed . | . . . . . . . . . . . . . . . Walls Destroyed . | . . . . . . . . . . . . . . . Machines Disabled . | . . . . . . . . . . . . . . . Actions | -11 -10 -10 -10 -7 -7 -5 -5 -5 -5 -4 -4 -4 -4 -4 --------- Run | Yrd Mat Min Sub Rec Scr Fac Upp Upp Zhi Pro Fac Upp Upp War Total 9398 | 65 385 879 244 521 2271 375 597 546 290 776 474 788 348 839 Wait 845 | . 48 186 29 12 136 55 74 34 . 21 136 20 . 94 Move 8149 | 53 286 664 204 495 2089 259 485 488 274 733 316 741 333 729 Hop . | . . . . . . . . . . . . . . . Pick Up 64 | 5 8 5 3 3 18 4 4 . 3 4 2 3 . 2 Fast Attach 39 | 6 1 . 1 . 3 7 4 2 6 2 2 2 . 3 Attach 46 | . 1 1 1 3 2 12 7 5 2 . 4 3 3 2 Detach 19 | . . . . . 3 4 4 2 3 . . 3 . . Swap 12 | . 5 . 1 1 1 1 . . 1 . 1 1 . . Drop 46 | 1 1 . 3 3 19 6 . . 1 2 3 4 1 2 Fire 169 | . 34 23 2 4 . 27 19 15 . 13 10 7 11 4 Melee 3 | . . . . . . . . . . . . . . 3 Ram . | . . . . . . . . . . . . . . . Kick . | . . . . . . . . . . . . . . . Crush 1 | . 1 . . . . . . . . . . . . . Escape Stasis . | . . . . . . . . . . . . . . . Rewire 4 | . . . . . . . . . . . . 4 . . Trap . | . . . . . . . . . . . . . . . Miscellaneous 1 | . . . . . . . . . . 1 . . . . Route ------- -11/Scrapyard -10/Materials (discovered 2 exits: *Mat / *Min) -10/Mines (discovered 3 exits: *Mat x2 / *Sub) -10/Subcaves -7/Recycling -7/Scraptown (discovered 2 exits: *Fac x2) -5/Factory -5/Upper Caves -5/Upper Caves -5/Zhirov -4/Proximity Caves -4/Factory -4/Upper Caves -4/Upper Caves -4/Warlord History --------- Turn | Location | Event 19 | -11/Scrapyard | Discovered new exit (range 15) 77 | -11/Scrapyard | Entered Materials 301 | -10/Materials | Build established: Mutant 357 | -10/Materials | Discovered new exit (range 7) 685 | -10/Materials | Discovered new exit (range 7) 691 | -10/Materials | Identified exit to Mines 696 | -10/Materials | Entered Mines 757 | -10/Mines | Met a Derelict who couldn't figure out how to use a Trap Extractor 791 | -10/Mines | Identified exit to Materials 791 | -10/Mines | Discovered exit to Materials (range 8) 1026 | -10/Mines | Discovered new exit (range 5) 1035 | -10/Mines | Identified exit to Subcaves 1136 | -10/Mines | Learned location of Storage (-7) 1205 | -10/Mines | Found a hidden stash of uninstalled traps 1504 | -10/Mines | Learned Materials security intel 1737 | -10/Mines | Found a damaged Exp. Sensor Array with a note attached 1740 | -10/Mines | Found Prototype Device 2020 | -10/Mines | Entered Subcaves 2366 | -10/Subcaves | Shifting Twisted Machinery released Flamer 2368 | -10/Subcaves | Shifting Twisted Machinery released Sub. Laser 2447 | -10/Subcaves | Discovered new exit (range 11) 2456 | -10/Subcaves | Core integrity fell below 50% 2495 | -10/Subcaves | Entered Recycling 2496 | -7/Recycling | Met a Zionite searching for Scraptown 2510 | -7/Recycling | Identified Exp. Sensor Array 3075 | -7/Recycling | Scanned before Scraplab entrance 3092 | -7/Recycling | Entered Scraplab 3103 | -7/Recycling | Discovered new exit (range 2) 3103 | -7/Recycling | Identified exit to Scraptown 3104 | -7/Recycling | Entered Scraptown 3345 | -7/Scraptown | Visited Bundlers 3440 | -7/Scraptown | Visited UFD Registry 3440 | -7/Scraptown | Registered with UFD as "Smoothforce" 3481 | -7/Scraptown | Visited Artisan Demo Area 3533 | -7/Scraptown | Visited Shadow of the Wyrm 3559 | -7/Scraptown | Visited Scrapoid Research Area 3593 | -7/Scraptown | Discovered new exit (range 11) 3608 | -7/Scraptown | Identified exit to Factory 3778 | -7/Scraptown | Visited SPCMW 4080 | -7/Scraptown | Visited TADAMA 4244 | -7/Scraptown | Visited CR-KLE's Repair Center 4252 | -7/Scraptown | CR-KLE repaired 3 parts 4308 | -7/Scraptown | Visited Scrap Suit Storage 4320 | -7/Scraptown | Found Scrap Suit 4324 | -7/Scraptown | Found Scrap Suit 4367 | -7/Scraptown | Visited Cartography Club 4419 | -7/Scraptown | Visited Science Guys 4472 | -7/Scraptown | Visited Derelict Rescue Squad 4479 | -7/Scraptown | Found DRS Beacon 4503 | -7/Scraptown | Visited Modified Component R&D 4801 | -7/Scraptown | Visited Infowarlord's Domain 4809 | -7/Scraptown | Found Exp. Signal Interpreter 4896 | -7/Scraptown | Visited Abandonware Association 4910 | -7/Scraptown | Learned abandonware demo "OVRCLOCK.EXE" 4915 | -7/Scraptown | Learned abandonware demo "ERRANTS.EXE" 4915 | -7/Scraptown | Learned abandonware demo "KABOOM.EXE" 4944 | -7/Scraptown | Visited Junk Repository 4977 | -7/Scraptown | Visited LU-1G1's Boring Crew 5390 | -7/Scraptown | Delivered Scrap Shield to a Scientist 5617 | -7/Scraptown | Discovered exit to Factory (range 3) 5673 | -7/Scraptown | Found Scrap Suit 5695 | -7/Scraptown | Entered Factory 5695 | -5/Factory | Evolved 10 slots: Power x1, Propulsion x3, Utility x5, Weapon x1 6114 | -5/Factory | Build established: Tank 6179 | -5/Factory | Lost 3 parts (1p2u) 6238 | -5/Factory | Discovered new exit (range 2) 6239 | -5/Factory | Identified exit to Upper Caves 6257 | -5/Factory | Entered Upper Caves 6259 | -5/Upper Caves | UFD Scientist delivered a prototype 6260 | -5/Upper Caves | Found Prototype Protection 6262 | -5/Upper Caves | Identified Enh. Scrap Shield 6361 | -5/Upper Caves | Attracted the attention of an 0b10 checkpoint 6495 | -5/Upper Caves | Lost 5 parts (1p2n1u1w) 6528 | -5/Upper Caves | Core integrity fell below 50% 6529 | -5/Upper Caves | System corruption reached 10% 6564 | -5/Upper Caves | Lost 3 parts (1n2u) 6943 | -5/Upper Caves | Build established: Derelict-Mutant 7061 | -5/Upper Caves | Discovered new exit (range 13) 7083 | -5/Upper Caves | Identified exit to Upper Caves 7086 | -5/Upper Caves | Entered another Upper Caves area 7086 | -5/Upper Caves | Accompanied by 5 allies 7260 | -5/Upper Caves | Learned 8 Factory zone layouts 7895 | -5/Upper Caves | Discovered new exit (range 8) 7903 | -5/Upper Caves | Identified exit to Zhirov 7905 | -5/Upper Caves | Entered Zhirov 7905 | -5/Zhirov | Accompanied by 1 ally 7905 | -5/Zhirov | Discovered new exit (range 4) 7922 | -5/Zhirov | Identified exit to Proximity Caves 7940 | -5/Zhirov | Met Zhirov 7970 | -5/Zhirov | Learned location of Quarantine (-3) 7970 | -5/Zhirov | Learned location of Testing (-2) 7970 | -5/Zhirov | Learned location of Command (-1) 7994 | -5/Zhirov | Zhirov requested help retrieving the SGEMP Prototype 8013 | -5/Zhirov | Found Alien Artifact 8013 | -5/Zhirov | Identified Integrated Reactor 8013 | -5/Zhirov | Installed Integrated Reactor, increased core energy generation (+10) 8032 | -5/Zhirov | Found Alien Artifact 8033 | -5/Zhirov | Identified Transdimensional Reconstructor 8033 | -5/Zhirov | Warped through subspace 8168 | -5/Zhirov | Build established: Gunner 8283 | -5/Zhirov | Entered Proximity Caves 8283 | -4/Proximity Caves | Accompanied by 1 ally 8318 | -4/Proximity Caves | Activated DRS Beacon 8650 | -4/Proximity Caves | Build established: Scavenger-Tank 8690 | -4/Proximity Caves | Spotted B-86 Titan 8751 | -4/Proximity Caves | Lost 3 allies 9092 | -4/Proximity Caves | Core integrity fell below 20% 9206 | -4/Proximity Caves | Discovered new exit (range 5) 9225 | -4/Proximity Caves | Entered Factory 9225 | -4/Factory | Evolved 2 slots: Utility x2 9447 | -4/Factory | Repaired Adv. Myomer Leg 9468 | -4/Factory | Build established: Scavenger-Mutant 9833 | -4/Factory | Build established: Scavenger-Tank 9878 | -4/Factory | Discovered new exit (range 12) 9905 | -4/Factory | Entered Upper Caves 9905 | -4/Upper Caves | Accompanied by 2 allies 10166 | -4/Upper Caves | Attracted the attention of an 0b10 checkpoint 10214 | -4/Upper Caves | Encountered a Warlord checkpoint 10318 | -4/Upper Caves | Build established: Derelict-Mutant 10891 | -4/Upper Caves | Discovered new exit (range 16) 10940 | -4/Upper Caves | Attacked by a delusional Derelict stockpiling parts 10951 | -4/Upper Caves | Entered another Upper Caves area 10973 | -4/Upper Caves | Encountered a Warlord checkpoint 10974 | -4/Upper Caves | Build established: Mutant 11353 | -4/Upper Caves | Discovered new exit (range 14) 11383 | -4/Upper Caves | Entered Warlord 11429 | -4/Warlord | System corruption cleaned by Quarantine Array 11777 | -4/Warlord | Rebuked by Warlord 11802 | -4/Warlord | Warlord's base attacked by MAIN.C 11940 | -4/Warlord | Found Prototype Device 12152 | -4/Warlord | Warlord forces counterattacked 12192 | -4/Warlord | Found Prototype Piercing Weapon 12192 | -4/Warlord | Identified Vortex Lance 12289 | -4/Warlord | Spotted Executioner 12344 | -4/Warlord | Found Prototype Device 12344 | -4/Warlord | Identified Minesniffer Drone Bay 12363 | -4/Warlord | Lost 10 parts (1p4n3u2w) 12391 | -4/Warlord | Spotted Striker 12401 | -4/Warlord | Spotted Striker 12405 | -4/Warlord | Core integrity fell below 50% 12411 | -4/Warlord | Core integrity fell below 20% 12412 | -4/Warlord | Destroyed by LV-01A with Experimental Neutron Missile Launcher Last Messages --------------- P-70 Sage destroyed. Minesniffer Drone destroyed. Penetrated by Slug. System corrupted: Substantial component data lost. The unstable cave ceiling collapses. G-67 Veteran crushed by falling debris. Minesniffer Drone retrieved by Minesniffer Drone Bay. The unstable cave ceiling collapses. Slug penetrates Earth. Penetrated by Slug. Imp. Matter Compressor destroyed. Minesniffer Drone destroyed. Minesniffer Drone Bay destroyed. Penetrated by Slug. The unstable cave ceiling collapses. Mak. Trap Scanner destroyed. G-67 Veteran destroyed. [Achievement: 10k Club] Map ----- +----------------------------------------------------+ | ### ########+###?????????????#" #?# ^ # | | ### ##+#### ## #?????????????#X #######+##### | | #?????????????#" +^^ + | | #?????????????#### ^ # | | #????????????????# ^""" # | | #+#####/###### #????????????????# """ + | | # ? #???## ##########????????# """ #### | | # #????# # #????????# #??## | | # #????# / #????????# #???? | | # #????# # ########## #### #???? | | # #????# # + #??# #???? | | # #????### # ####### #??# #???? | | # #??????#!# #?????# #??# #???? | | # #??????#=# #?????# #??# #???? | | # #??????#%##########?#####+##+#??# #???? | | ##########??????#[#?#######??# #??# #???? | | ?????????????#### ##^ #??# #??# #???? | | ###??????????# + """ #??# #??# #???? | | ""#?????????##= # """ #??# #??# #???? | | ""#???#######=% ^ # """ #??# = #??# #???? | | !!#???# ##!!= + """ #### #??# #???? | | !!#??##" ##%]! ## """ # #### ##### | | !#### ! % ## # # # | | # # ## % # # | | # ## # # ######"+## " | | # # ; @ g%%d /^ | | # # K bis [%g g /^ | | % # d h /^ | | # h /^ | | # # # # % s # " | | # # # !!=* % # # | | # %==%= g!g g # # | | # # # # =*! * ] %[ % != #### ##### | | # ### /%=[ [%! !%[ K ##??? | | # # #############;##### ##;;; = #??? | | ### #???????# ###?# ; ##??? | | # # # #???????# #????#;! #???? | | ???????# #?????#%####+#+######???? | | ## ####??????# #######|## #????? | | ?????????# + ^ ## #????? | | "??????????# ####+##+## #????? | | # ????????????# #? ## #????? | | # "????????????# # """"" ## #????? | | ? "????????????########### """"" ## #????? | | ? ??????????????????????# """"" ## #????? | | ?##??????????????????????# ## #????? | | ?????????????????????????###############+####????? | | ?????????????????????????????????????????????????? | | ?????????????????????????????????????????????????? | | ?????????????????????????????????????????????????? | +----------------------------------------------------+ Best States ------------- Heat Dissipation 43 Coolant Potential 65 Energy Generation 40 Energy Capacity 710 Matter Stores 600 Matter Capacity 600 Sight Range 16 Terrain Scan Range 16 Terrain Scan Density 210 Jamming Range 14 Armor Coverage 800 Resistance: KI 20 Resistance: EM 15 Core Shielding 40 Evasion (%) 55 Recoil Reduction 3 Kinecelleration 30 Offensive Hacking 14 Item Schematics ----------------- Assault Drone Bay | -5/Zhirov | Free Exp. Heat Sink | -5/Zhirov | Free Exp. Optical Array | -5/Zhirov | Free Imp. Arc Thrower | -5/Zhirov | Free Robot Schematics ------------------ None Fabricated ------------ Nothing Alien Tech Used ----------------- Integrated Reactor Transdimensional Reconstructor Achievements -------------- 10k Club A Powerful Ally? Adventurer Alien Tech Armchair Analyst Backstab Explorer I'm Back, Baby! Release The Drones! Respectable Loadout Subspace Traveler The Science Guy Challenges ------------ None Game ------ Seed ShrapnelSpliceInterrupter Manual? 0 Play Time 02:38:27 Cumulative 15.8 hours Start 2024.08.15 @ 20:38:05 End 2024.08.15 @ 23:29:01 Sessions 1 Manual Loads 0 Difficulty Rogue Special Mode None Game No. 21 Rogue 21 Adventurer 0 Explorer 0 Win Type - Total 0 Types 0/0/0/0/0/0/0/0/0 Lore% 18 Gallery% 18 Achievement% 16 Wizard Run 0 Options --------- Layout 1 ASCII 0 Keyboard 0 Movement Mouse Keybinds 0 Fullscreen 2 Font 32/SmallcapsGlow Map View 50x35 Zoom Use 0% Tactical HUD 0 Map Filters NONE Filters NONE Steam 1 RUN: 4a825cc1-b639-4184-bbb0-935eda130093